[Event "Orbis-2 GM 2018"]
[Site "Paracin"]
[Date "2018.12.06"]
[Round "5"]
[White "Kosic, Dragan"]
[Black "Gukesh D"]
[Result "1/2-1/2"]
[ECO "E92"]
[WhiteElo "2488"]
[BlackElo "2466"]
[Annotator "RC"]
[PlyCount "28"]
[EventDate "2018.12.03"]
[EventType "tourn"]
[EventCountry "SRB"]
[SourceTitle "playchess.com"]
[Source "ChessBase"]
[SourceQuality "1"]
[TimeControl "40/5400+30:1800+30"]

1. d4 {[%emt 0:00:00]} Nf6 {[%emt 0:00:00]} 2. c4 {[%emt 0:00:23]} g6 {[%emt 0:00:00]} 3. Nc3 {[%emt 0:01:50]} Bg7 {[%emt 0:00:00]} 4. e4 {[%emt 0:00:06]} d6 {[%emt 0:00:06]} 5. Nf3 {[%emt 0:00:04]} O-O {[%emt 0:00:07]} 6. Be2 {[%emt 0:00:03]} e5 {[%emt 0:01:52]} 7. Be3 {[%emt 0:00:11]} exd4 {[%emt 0:01:46]} 8. Nxd4 {[%emt 0:00:11]} Re8 {[%emt 0:00:06]} 9. f3 {[%emt 0:00:13]} c6 {[%emt 0:00:50]} 10. Bf2 {[%emt 0:01:48]} d5 {[%emt 0:00:07]} 11. exd5 {[%emt 0:00:06]} cxd5 {[%emt 0:00:05]} 12. O-O {[%emt 0:00:13]} Nc6 {[%emt 0:00:42]} 13. c5 {[%emt 0:00:07]} Nh5 {[%emt 0:01:16]} 14. Qd2 {[%emt 0:00:26]} Be5 {[%emt 0:19:32]} 1/2-1/2